fUSD/lending_fUSD_20240220
["ID","MTS","AMOUNT","RATE_DAILY","PERIOD"]
[314529353,1708405859071,-500.0,0.000365,2]
[314529354,1708405859081,-500.0,0.000365,2]
[314529355,1708405859092,-500.0,0.000365,2]
[314529356,1708405859101,-500.0,0.000365,2]
[314529357,1708405859110,-500.0,0.000365,2]
[314529358,1708405859119,-500.0,0.000365,2]
[314529359,1708405859129,-500.0,0.000365,2]
[314529360,1708405859138,-604.67814751,0.000365,2]
[314529361,1708405859149,-500.0,0.000365,2]
[314529362,1708405859158,-500.0,0.000365,2]
[314529363,1708405859167,-500.0,0.000365,2]
[314529364,1708405859176,-500.0,0.000365,2]
[314529365,1708405859186,-646.405095,0.000365,2]
[314529366,1708405859195,-500.0,0.000365,2]
[314529367,1708405859205,-1291.34,0.000365,7]
[314529368,1708405859214,-500.0,0.000365,2]
[314529369,1708405859223,-500.0,0.000365,2]
[314529370,1708405859233,-500.0,0.000365,2]
[314529371,1708405859243,-543.35533089,0.000365,2]
[314529372,1708405859252,-500.0,0.000365,2]
[314529373,1708405859262,-500.0,0.000365,2]
[314529374,1708405859271,-500.0,0.000365,2]
[314529375,1708405859281,-500.0,0.000365,2]
[314529376,1708405859290,-553.5880957,0.000365,2]
[314529377,1708405859299,-500.0,0.000365,2]
[314529378,1708405859309,-500.0,0.000365,2]
[314529379,1708405859318,-500.0,0.000365,2]
[314529380,1708405859327,-500.0,0.000365,2]
[314529381,1708405859337,-500.0,0.000365,2]
[314529382,1708405859346,-500.0,0.000365,2]
[314529383,1708405859356,-500.0,0.000365,2]
[314529384,1708405859366,-500.0,0.000365,2]
[314529385,1708405859376,-500.0,0.000365,2]
[314529386,1708405859385,-500.0,0.000365,2]
[314529387,1708405859395,-500.0,0.000365,2]
[314529388,1708405859405,-500.0,0.000365,2]
[314529389,1708405859415,-500.0,0.000365,2]
[314529390,1708405859425,-500.0,0.000365,2]
[314529391,1708405859435,-500.0,0.000365,2]
[314529392,1708405859444,-500.0,0.000365,2]
[314529393,1708405859454,-500.0,0.000365,2]
[314529394,1708405859464,-500.0,0.000365,2]
[314529395,1708405859473,-500.0,0.000365,2]
[314529396,1708405859483,-500.0,0.000365,2]
[314529397,1708405859493,-500.0,0.000365,2]
[314529398,1708405859503,-500.0,0.000365,2]
[314529399,1708405859513,-810.33,0.000365,2]
[314529400,1708405859523,-500.0,0.000365,2]
[314529401,1708405859532,-500.0,0.000365,2]
[314529402,1708405859542,-500.0,0.000365,2]
[314529403,1708405859552,-500.0,0.000365,2]
[314529404,1708405859562,-500.0,0.000365,2]
[314529405,1708405859572,-884.12,0.000365,2]
[314529406,1708405859581,-500.0,0.000365,2]
[314529407,1708405859591,-743.52,0.000365,2]
[314529408,1708405859601,-553.43377449,0.000365,2]
[314529409,1708405859610,-906.89,0.000365,2]
[314529410,1708405859619,-500.0,0.000365,2]
[314529411,1708405859629,-500.0,0.000365,2]
[314529412,1708405859639,-587.64,0.000365,2]
[314529413,1708405859650,-500.0,0.000365,2]
[314529414,1708405859660,-500.0,0.000365,2]
[314529415,1708405859669,-500.0,0.000365,2]
[314529416,1708405859679,-500.0,0.000365,2]
[314529417,1708405859689,-500.0,0.000365,2]
[314529418,1708405859698,-500.0,0.000365,2]
[314529419,1708405859707,-500.0,0.000365,2]
[314529420,1708405859717,-500.0,0.000365,2]
[314529421,1708405859726,-500.0,0.000365,2]
[314529422,1708405859736,-500.0,0.000365,2]
[314529423,1708405859745,-522.63856753,0.000365,2]
[314529424,1708405859755,-500.0,0.000365,2]
[314529425,1708405859764,-500.0,0.000365,2]
[314529426,1708405859773,-648.5,0.000365,2]
[314529427,1708405859783,-500.0,0.000365,2]
[314529428,1708405859792,-500.0,0.000365,2]
[314529429,1708405859801,-590.95,0.000365,2]
[314529430,1708405859811,-500.0,0.00036501,2]
[314529431,1708405859821,-500.0,0.00036501,2]
[314529432,1708405859830,-500.0,0.00036501,2]
[314529433,1708405859840,-500.0,0.00036501,2]
[314529434,1708405859849,-500.0,0.00036501,2]
[314529435,1708405859859,-575.39,0.00036501,2]
[314529436,1708405859868,-626.27,0.00036501,2]
[314529437,1708405859878,-500.0,0.00036501,2]
[314529438,1708405859888,-994.41,0.00036501,2]
[314529439,1708405859897,-500.0,0.00036501,2]
[314529440,1708405859907,-1239.4,0.00036501,2]
[314529441,1708405859918,-500.0,0.00036501,2]
[314529442,1708405859928,-500.0,0.00036501,2]
[314529443,1708405859937,-500.0,0.00036501,2]
[314529444,1708405859946,-500.0,0.00036501,2]
[314529445,1708405859956,-655.95,0.00036501,2]
[314529446,1708405859966,-587.57,0.00036501,2]
[314529447,1708405859977,-643.06,0.00036501,2]
[314529448,1708405859987,-894.33,0.00036501,2]
[314529449,1708405859997,-500.0,0.00036501,2]
[314529450,1708405860006,-500.0,0.00036501,2]
[314529451,1708405860017,-500.0,0.00036501,2]
[314529452,1708405860027,-500.0,0.00036501,2]
[314529453,1708405860037,-500.0,0.00036501,2]
[314529454,1708405860049,-593.69,0.00036501,2]
[314529455,1708405860059,-688.4,0.00036501,2]
[314529456,1708405860069,-525.39655129,0.00036501,2]
[314529457,1708405860079,-500.0,0.00036501,2]
[314529458,1708405860089,-500.0,0.00036501,2]
[314529459,1708405860099,-500.0,0.00036501,2]
[314529460,1708405860108,-500.0,0.00036501,2]
[314529461,1708405860118,-500.0,0.00036501,2]
[314529462,1708405860127,-500.0,0.00036501,2]
[314529463,1708405860137,-500.0,0.00036501,2]
[314529464,1708405860146,-605.41,0.00036501,2]
[314529465,1708405860156,-547.12,0.00036501,2]
[314529466,1708405860166,-500.0,0.00036501,2]
[314529467,1708405860175,-579.04,0.00036501,2]
[314529468,1708405860185,-500.0,0.00036501,2]
[314529469,1708405860195,-500.0,0.00036501,2]
[314529470,1708405860205,-150.0,0.00036517,2]
[314529471,1708405860215,-217.64331962,0.00036523,8]
[314529472,1708405860225,-300.0,0.00036529,2]
[314529473,1708405860235,-202.376581,0.00036534,3]
[314529474,1708405860245,-295.03687102,0.00036541,8]
[314529475,1708405860255,-158.17,0.00036553,2]
[314529476,1708405860265,-1500.0,0.00036556,2]
[314529477,1708405860276,-2343.98,0.00036563,2]
[314529478,1708405860286,-1165.67,0.00036563,2]
[314529479,1708405860296,-543.99,0.00036563,2]
[314529480,1708405860306,-649.17,0.00036563,2]
[314529481,1708405860316,-882.84,0.00036563,2]
[314529482,1708405860326,-911.74,0.00036563,2]
[314529483,1708405860335,-2167.09,0.00036563,2]
[314529484,1708405860346,-4210.64,0.00036563,2]
[314529485,1708405860356,-19216.17,0.00036563,2]
[314529486,1708405860366,-948.0,0.00036563,2]
[314529487,1708405860375,-500.0,0.00036563,2]
[314529488,1708405860385,-1093.22,0.00036563,2]
[314529489,1708405860397,-1692.44,0.00036563,2]
[314529490,1708405860406,-500.0,0.00036563,2]
[314529491,1708405860416,-1578.14,0.00036563,2]
[314529492,1708405860426,-1099.35,0.00036563,2]
[314529493,1708405860436,-975.65,0.00036563,2]
[314529494,1708405860447,-708.65,0.00036563,2]
[314529495,1708405860457,-6268.26,0.00036563,2]
[314529496,1708405860467,-500.0,0.00036563,2]
[314529497,1708405860477,-500.0,0.00036563,2]
[314529498,1708405860487,-901.49,0.00036563,2]
[314529499,1708405860497,-651.6,0.00036563,2]
[314529500,1708405860507,-1025.4,0.00036563,2]
[314529501,1708405860516,-500.0,0.00036563,2]
[314529502,1708405860526,-3156.54,0.00036563,2]
[314529503,1708405860536,-857.52,0.00036563,2]
[314529504,1708405860546,-1107.07,0.00036563,2]
[314529505,1708405860555,-799.36,0.00036563,2]
[314529506,1708405860565,-833.39,0.00036563,2]
[314529507,1708405860575,-757.3,0.00036563,2]
[314529508,1708405860586,-3560.7,0.00036563,2]
[314529509,1708405860595,-254.96569712,0.00036563,2]
[314529510,1708405860605,-1705.39,0.00036563,2]
[314529511,1708405860615,-789.45,0.00036563,2]
[314529512,1708405860625,-3144.99,0.00036563,2]
[314529513,1708405860634,-5007.03,0.00036563,2]
[314529514,1708405860644,-1314.19,0.00036563,2]
[314529515,1708405860655,-985.9,0.00036563,2]
[314529516,1708405860665,-1051.08,0.00036563,2]
[314529517,1708405860675,-1499.97,0.00036563,2]
[314529518,1708405860684,-7345.36,0.00036563,2]
[314529519,1708405860694,-1204.36,0.00036563,2]
[314529520,1708405860704,-500.0,0.00036563,2]
[314529521,1708405860713,-770.93,0.00036563,2]
[314529522,1708405860723,-2816.2,0.00036563,2]
[314529523,1708405860733,-856.91,0.00036563,2]
[314529524,1708405860742,-566.48,0.00036563,2]
[314529525,1708405860752,-529.69,0.00036563,2]
[314529526,1708405860763,-631.33,0.00036563,2]
[314529527,1708405860773,-934.23,0.00036563,2]
[314529528,1708405860782,-347.20380309,0.00036563,2]
[314529529,1708405860792,-506.06,0.00036563,2]
[314529530,1708405860802,-503.72,0.00036563,2]
[314529531,1708405860813,-763.13,0.00036563,2]
[314529532,1708405860823,-500.0,0.00036563,2]
[314529533,1708405860834,-500.0,0.00036563,2]
[314529534,1708405860844,-802.39,0.00036563,2]
[314529535,1708405860854,-1007.84,0.00036563,2]
[314529536,1708405860863,-800.83,0.00036563,2]
[314529537,1708405860872,-712.66,0.00036563,2]
[314529538,1708405860882,-28558.24345411,0.00036564,2]
[314529539,1708405860892,-519.05761026,0.00036564,2]
[314529540,1708405860902,-500.0,0.00036564,2]
[314529541,1708405860911,-500.0,0.00036564,2]
[314529542,1708405860920,-500.0,0.00036564,2]
[314529543,1708405860930,-500.0,0.00036564,2]
[314529544,1708405860940,-500.0,0.00036564,2]
[314529545,1708405860950,-1224.75,0.00036564,2]
[314529546,1708405860959,-500.0,0.00036564,2]
[314529547,1708405860970,-546.6,0.00036564,2]
[314529548,1708405860980,-601.9,0.00036564,2]
[314529549,1708405860991,-500.0,0.00036564,2]
[314529550,1708405861001,-500.0,0.00036564,2]
[314529551,1708405861013,-500.0,0.00036564,2]
[314529552,1708405861023,-211.4005616,0.00036564,2]
[314529553,1708405861032,-500.0,0.00036564,2]
[314529554,1708405861042,-500.0,0.00036564,2]
[314529555,1708405861053,-500.0,0.00036564,2]
[314529556,1708405861064,-500.0,0.00036564,2]
[314529557,1708405861074,-500.0,0.00036564,2]
[314529558,1708405861085,-500.0,0.00036564,2]
[314529559,1708405861095,-500.0,0.00036564,2]
[314529560,1708405861105,-500.0,0.00036564,2]
[314529561,1708405861115,-480.87767827,0.00036564,2]
[314529562,1708405861124,-500.0,0.00036564,2]
[314529563,1708405861136,-1502.26,0.00036564,2]
[314529564,1708405861147,-500.0,0.00036564,2]
[314529565,1708405861157,-500.0,0.00036564,2]
[314529566,1708405861166,-855.67,0.00036564,2]
[314529567,1708405861176,-543.99167968,0.00036564,2]
[314529568,1708405861186,-500.0,0.00036564,2]
[314529569,1708405861197,-500.0,0.00036564,2]
[314529570,1708405861206,-500.0,0.00036564,2]
[314529571,1708405861216,-500.0,0.00036564,2]
[314529572,1708405861226,-500.0,0.00036564,2]
[314529573,1708405861236,-500.0,0.00036564,2]
[314529574,1708405861245,-500.0,0.00036564,2]
[314529575,1708405861255,-500.0,0.00036564,2]
[314529576,1708405861265,-500.0,0.00036564,2]
[314529577,1708405861274,-500.0,0.00036564,2]
[314529578,1708405861284,-500.0,0.00036564,2]
[314529579,1708405861295,-500.0,0.00036564,2]
[314529580,1708405861304,-500.0,0.00036564,2]
[314529581,1708405861314,-500.0,0.00036564,2]
[314529582,1708405861325,-500.0,0.00036564,2]
[314529583,1708405861335,-500.0,0.00036564,2]
[314529584,1708405861345,-500.0,0.00036564,2]
[314529585,1708405861354,-500.0,0.00036564,2]
[314529586,1708405861364,-500.0,0.00036564,2]
[314529587,1708405861374,-500.0,0.00036564,2]
[314529588,1708405861383,-550.61491042,0.00036564,2]
[314529589,1708405861393,-500.0,0.00036564,2]
[314529590,1708405861403,-500.0,0.00036564,2]
[314529591,1708405861413,-500.0,0.00036564,2]
[314529592,1708405861422,-500.0,0.00036564,2]
[314529593,1708405861433,-500.0,0.00036564,2]
[314529594,1708405861443,-500.0,0.00036564,2]
[314529595,1708405861453,-623.26400134,0.00036564,2]
[314529596,1708405861464,-500.0,0.00036564,2]
[314529597,1708405861474,-500.0,0.00036564,2]
[314529598,1708405861485,-500.0,0.00036564,2]
[314529599,1708405861495,-500.0,0.00036564,2]
[314529600,1708405861505,-500.0,0.00036564,2]
[314529601,1708405861514,-500.0,0.00036564,2]
[314529602,1708405861524,-500.0,0.00036564,2]
[314529603,1708405861534,-500.0,0.00036564,2]
[314529604,1708405861544,-500.0,0.00036564,2]
[314529605,1708405861553,-500.0,0.00036564,2]
[314529606,1708405861564,-500.0,0.00036564,2]
[314529607,1708405861574,-500.0,0.00036564,2]
[314529608,1708405861584,-500.0,0.00036564,2]
[314529609,1708405861777,-517.91,0.00036564,2]
[314529610,1708405861787,-500.0,0.00036564,2]
[314529611,1708405861797,-500.0,0.00036564,2]
[314529612,1708405861806,-500.0,0.00036564,2]
[314529613,1708405861815,-500.0,0.00036564,2]
[314529614,1708405861824,-500.0,0.00036564,2]
[314529615,1708405861833,-500.0,0.00036564,2]
[314529616,1708405861843,-500.0,0.00036564,2]
[314529617,1708405861852,-500.0,0.00036564,2]
[314529618,1708405861861,-500.0,0.00036564,2]
[314529619,1708405861871,-500.0,0.00036564,2]
[314529620,1708405861880,-501.18470031,0.00036564,2]
[314529621,1708405861889,-503.07,0.00036564,2]
[314529622,1708405861901,-500.0,0.00036564,2]
[314529623,1708405861910,-500.0,0.00036564,2]
[314529624,1708405861919,-500.0,0.00036564,2]
[314529625,1708405861927,-857.77,0.00036564,2]
[314529626,1708405861937,-500.0,0.00036564,2]
[314529627,1708405861946,-610.42,0.00036564,2]
[314529628,1708405861955,-500.0,0.00036564,2]
[314529629,1708405861966,-500.0,0.00036564,2]
[314529630,1708405861977,-500.0,0.00036564,2]
[314529631,1708405861986,-176.83950114,0.00036564,2]
[314529632,1708405861996,-500.0,0.00036564,2]
[314529633,1708405862005,-500.0,0.00036564,2]
[314529634,1708405862015,-500.0,0.00036564,2]
[314529635,1708405862025,-584.52,0.00036564,2]
[314529636,1708405862036,-622.47,0.00036564,2]
[314529637,1708405862045,-500.0,0.00036564,2]
[314529638,1708405862057,-500.0,0.00036564,2]
[314529639,1708405862078,-176.29,0.00036564,2]
[314529640,1708405862088,-500.0,0.00036564,2]
[314529641,1708405862099,-500.0,0.00036564,2]
[314529642,1708405862109,-500.0,0.00036564,2]
[314529643,1708405862118,-500.0,0.00036564,2]
[314529644,1708405862128,-561.68790391,0.00036564,2]
[314529645,1708405862139,-500.0,0.00036564,2]
[314529646,1708405862150,-500.0,0.00036564,2]
[314529647,1708405862159,-500.0,0.00036564,2]
[314529648,1708405862169,-500.0,0.00036564,2]
[314529649,1708405862178,-500.0,0.00036564,2]
[314529650,1708405862188,-500.0,0.00036564,2]
[314529651,1708405862198,-500.0,0.00036564,2]
[314529652,1708405862208,-500.0,0.00036564,2]
[314529653,1708405862217,-653.77,0.00036564,2]
[314529654,1708405862227,-500.0,0.00036564,2]
[314529655,1708405862237,-651.49,0.00036564,2]
[314529656,1708405862246,-500.0,0.00036564,2]
[314529657,1708405862256,-500.0,0.00036564,2]
[314529658,1708405862267,-568.04,0.00036564,2]
[314529659,1708405862278,-500.0,0.00036564,2]
[314529660,1708405862289,-500.0,0.00036564,2]
[314529661,1708405862299,-500.0,0.00036564,2]
[314529662,1708405862308,-500.0,0.00036564,2]
[314529663,1708405862318,-500.0,0.00036564,2]
[314529664,1708405862327,-500.0,0.00036564,2]
[314529665,1708405862336,-502.26,0.00036564,2]
[314529666,1708405862345,-500.0,0.00036564,2]
[314529667,1708405862355,-500.0,0.00036564,2]
[314529668,1708405862364,-500.0,0.00036564,2]
[314529669,1708405862374,-500.0,0.00036564,2]
[314529670,1708405862384,-500.0,0.00036564,2]
[314529671,1708405862393,-500.0,0.00036564,2]
[314529672,1708405862403,-592.29,0.00036564,2]
[314529673,1708405862412,-560.03316891,0.00036564,2]
[314529674,1708405862422,-500.0,0.00036564,2]
[314529675,1708405862431,-609.58,0.00036564,2]
[314529676,1708405862441,-500.0,0.00036564,2]
[314529677,1708405862451,-500.0,0.00036564,2]
[314529678,1708405862460,-500.0,0.00036564,2]
[314529679,1708405862469,-535.87285519,0.00036564,2]
[314529680,1708405862479,-500.0,0.00036564,2]
[314529681,1708405862489,-500.0,0.00036564,2]
[314529682,1708405862498,-1156.3,0.00036564,2]
[314529683,1708405862508,-500.0,0.00036564,2]
[314529684,1708405862517,-500.0,0.00036564,2]
[314529685,1708405862527,-500.0,0.00036564,2]
[314529686,1708405862537,-500.0,0.00036564,2]
[314529687,1708405862546,-500.0,0.00036564,2]
[314529688,1708405862556,-1376.34,0.00036564,2]
[314529689,1708405862566,-1450.35,0.00036564,2]
[314529690,1708405862575,-710.23,0.00036564,2]
[314529691,1708405862585,-612.87,0.00036564,2]
[314529692,1708405862594,-500.0,0.00036564,2]
[314529693,1708405862604,-500.0,0.00036564,2]
[314529694,1708405862614,-2122.43,0.00036564,2]
[314529695,1708405862623,-500.0,0.00036564,2]
[314529696,1708405862632,-500.0,0.00036564,2]
[314529697,1708405862642,-500.0,0.00036564,2]
[314529698,1708405862652,-1666.11,0.00036564,2]
[314529699,1708405862661,-996.96,0.00036564,2]
[314529700,1708405862670,-500.0,0.00036564,2]
[314529701,1708405862679,-500.0,0.00036564,2]
[314529702,1708405862689,-403.42604527,0.00036564,2]
[314529703,1708405862698,-2200.91,0.00036564,2]
[314529704,1708405862708,-500.0,0.00036564,2]
[314529705,1708405862717,-3505.57,0.00036564,2]
[314529706,1708405862726,-1549.1,0.00036564,2]
[314529707,1708405862736,-500.0,0.00036564,2]
[314529708,1708405862745,-500.0,0.00036564,2]
[314529709,1708405862754,-500.0,0.00036564,2]
[314529710,1708405862764,-1427.74,0.00036564,2]
[314529711,1708405862773,-1116.74832906,0.00036564,2]
[314529712,1708405862782,-1106.24,0.00036564,2]
[314529713,1708405862791,-500.0,0.00036564,2]
[314529714,1708405862800,-558.37,0.00036564,2]
[314529715,1708405862809,-500.0,0.00036564,2]
[314529716,1708405862819,-8266.61,0.00036564,2]
[314529717,1708405862828,-500.0,0.00036564,2]
[314529718,1708405862837,-500.0,0.00036564,2]
[314529719,1708405862846,-500.0,0.00036564,2]
[314529720,1708405862856,-500.0,0.00036564,2]
[314529721,1708405862865,-500.0,0.00036564,2]
[314529722,1708405862875,-500.0,0.00036564,2]
[314529723,1708405862884,-1222.07,0.00036564,2]
[314529724,1708405862893,-500.0,0.00036564,2]
[314529725,1708405862904,-500.0,0.00036564,2]
[314529726,1708405862913,-1383.97,0.00036564,2]
[314529727,1708405862923,-1188.64,0.00036564,2]
[314529728,1708405862932,-500.0,0.00036564,2]
[314529729,1708405862942,-1841.65,0.00036564,2]
[314529730,1708405862951,-514.51,0.00036564,2]
[314529731,1708405862960,-159.06237136,0.00036564,2]
[314529732,1708405862972,-500.0,0.00036564,2]
[314529733,1708405862981,-500.0,0.00036564,2]
[314529734,1708405862991,-500.0,0.00036564,2]
[314529735,1708405863000,-500.0,0.00036564,2]
[314529736,1708405863010,-500.0,0.00036564,2]
[314529737,1708405863020,-500.0,0.00036564,2]
[314529738,1708405863029,-500.0,0.00036564,2]
[314529739,1708405863040,-2051.17,0.00036564,2]
[314529740,1708405863050,-358.57768344,0.00036564,2]
[314529741,1708405863059,-500.0,0.00036564,2]
[314529742,1708405863069,-500.0,0.00036564,2]
[314529743,1708405863078,-1668.23,0.00036564,2]
[314529744,1708405863088,-500.0,0.00036564,2]
[314529745,1708405863097,-500.0,0.00036564,2]
[314529746,1708405863107,-1172.7,0.00036564,2]
[314529747,1708405863117,-500.0,0.00036564,2]
[314529748,1708405863126,-1083.34,0.00036564,2]
[314529749,1708405863136,-1500.0,0.00036573,2]
[314529750,1708405863147,-150.0,0.00036577,2]
[314529751,1708405863157,-152.83,0.00036582,2]
[314529752,1708405863167,-1010.53812162,0.0003659,2]
[314529753,1708405863177,-3327.55730716,0.0003659,2]
[314529754,1708405863186,-152.01937746,0.00036596,2]
[314529755,1708405863196,-500.0,0.00036599,2]
[314529756,1708405863205,-515.73125752,0.00036599,2]
[314529757,1708405863215,-458.83496234,0.00036599,2]
[314529758,1708405863224,-500.0,0.00036599,2]
[314529759,1708405863233,-500.0,0.00036599,2]
[314529760,1708405863243,-463.8,0.000366,3]
[314529761,1708405863253,-3964.56826218,0.00036603,9]
[314529762,1708405863263,-150.0,0.00036609,2]
[314529763,1708405863272,-202.62885797,0.0003661,2]
[314529764,1708405863282,-1782.3382,0.0003661,2]
[314529765,1708405863291,-150.0,0.00036619,2]
[314529766,1708405863300,-514.51811362,0.00036621,8]
[314529767,1708405863309,-1500.0,0.00036625,2]
[314529768,1708405863319,-1500.0,0.00036628,2]
[314529769,1708405863328,-150.0,0.00036641,2]
[314529770,1708405863338,-302.4026063,0.00036653,2]
[314529771,1708405863347,-150.0,0.00036654,2]
[314529772,1708405863357,-150.0,0.00036661,2]
[314529773,1708405863366,-1020.38,0.00036664,2]
[314529774,1708405863375,-1222.32,0.00036664,2]
[314529775,1708405863385,-500.0,0.00036664,2]
[314529776,1708405863395,-1934.95,0.00036664,2]
[314529777,1708405863406,-795.84,0.00036664,2]
[314529778,1708405863416,-1767.15,0.00036664,2]
[314529779,1708405863426,-1015.81,0.00036664,2]
[314529780,1708405863436,-607.13937907,0.00036664,2]
[314529781,1708405863445,-734.77,0.00036664,2]
[314529782,1708405863455,-1939.44,0.00036664,2]
[314529783,1708405863464,-1351.97,0.00036664,2]
[314529784,1708405863474,-1088.16,0.00036664,2]
[314529785,1708405863483,-1475.67,0.00036664,2]
[314529786,1708405863493,-1038.28,0.00036664,2]
[314529787,1708405863503,-1154.43,0.00036664,2]
[314529788,1708405863512,-1030.29,0.00036664,2]
[314529789,1708405863522,-2781.04,0.00036664,2]
[314529790,1708405863531,-524.0,0.00036664,2]
[314529791,1708405863541,-677.33,0.00036664,2]
[314529792,1708405863550,-4170.19,0.00036664,2]
[314529793,1708405863559,-500.0,0.00036664,2]
[314529794,1708405863569,-1974.77,0.00036664,2]
[314529795,1708405863580,-3026.21,0.00036664,2]
[314529796,1708405863589,-686.23,0.00036664,2]
[314529797,1708405863599,-764.58,0.00036664,2]
[314529798,1708405863608,-765.68,0.00036664,2]
[314529799,1708405863617,-1513.9,0.00036664,2]
[314529800,1708405863627,-1299.32,0.00036664,2]
[314529801,1708405863636,-940.65,0.00036664,2]
[314529802,1708405863645,-1988.81,0.00036664,2]
[314529803,1708405863655,-921.1,0.00036665,2]
[314529804,1708405863665,-1730.62,0.00036665,2]
[314529805,1708405863674,-1958.76,0.00036665,2]
[314529806,1708405863684,-1249.32,0.00036665,2]
[314529807,1708405863693,-902.22,0.00036665,2]
[314529808,1708405863703,-664.99,0.00036665,2]
[314529809,1708405863712,-669.7,0.00036665,2]
[314529810,1708405863722,-3868.49,0.00036665,2]
[314529811,1708405863731,-1885.97,0.00036665,2]
[314529812,1708405863740,-658.2,0.00036665,2]
[314529813,1708405863749,-1639.72,0.00036665,2]
[314529814,1708405863759,-1006.78,0.00036665,2]
[314529815,1708405863768,-673.99,0.00036665,2]
[314529816,1708405863778,-500.0,0.00036665,2]
[314529817,1708405863787,-505.6,0.00036665,2]
[314529818,1708405863796,-1619.9,0.00036665,2]
[314529819,1708405863806,-927.69,0.00036665,2]
[314529820,1708405863815,-2967.23,0.00036665,2]
[314529821,1708405863824,-1060.89,0.00036665,2]
[314529822,1708405863833,-1666.19,0.00036665,2]
[314529823,1708405863843,-720.79,0.00036665,2]
[314529824,1708405863851,-1070.65,0.00036665,2]
[314529825,1708405863860,-500.84,0.00036665,2]
[314529826,1708405863869,-999.67,0.00036665,2]
[314529827,1708405863878,-850.24,0.00036665,2]
[314529828,1708405863887,-1626.55,0.00036665,2]
[314529829,1708405863897,-873.93,0.00036665,2]
[314529830,1708405863907,-500.0,0.00036665,2]
[314529831,1708405863917,-1425.91,0.00036665,2]
[314529832,1708405863927,-151.72942358,0.0003668,2]
[314529833,1708405863936,-1500.0,0.00036683,2]
[314529834,1708405863947,-200.0,0.00036684,3]
[314529835,1708405863956,-800.0,0.00036684,3]
[314529836,1708405863966,-200.0,0.00036684,10]
[314529837,1708405863979,-500.0,0.00036684,10]
[314529838,1708405863989,-200.0,0.00036684,10]
[314529839,1708405863998,-1500.0,0.00036693,2]
[314529840,1708405864008,-150.0,0.00036698,2]
[314529841,1708405864018,-217.64331962,0.00036699,8]
[314529842,1708405864027,-1016.0,0.000367,7]
[314529843,1708405864037,-154.6,0.000367,3]
[314529844,1708405864049,-1192.0,0.000367,7]
[314529845,1708405864059,-295.03687102,0.0003672,8]
[314529846,1708405864069,-1500.0,0.00036727,2]
[314529847,1708405864078,-1155.81582629,0.00036733,2]
[314529848,1708405864087,-1500.0,0.00036739,2]
[314529849,1708405864096,-150.0,0.00036745,2]
[314529850,1708405864106,-1500.0,0.0003676,2]
[314529851,1708405864115,-3964.56826218,0.00036762,9]
[314529852,1708405864125,-150.0,0.00036764,2]